bitfinex/quotes_ETHUSD_20240907
["timestamp","ask_amount","ask_price","bid_price","bid_amount"]
[1725723012379,7.51557,2317.3,2317.0,0.0016]
[1725723012719,4.31555,2317.2,2317.0,0.0016]
[1725723013017,1.383112,2317.1,2317.0,0.0016]
[1725723013320,1.933112,2317.1,2317.0,0.0016]
[1725723014858,18.6506338,2317.1,2317.0,0.0016]
[1725723015069,5.133312,2317.1,2317.0,0.0016]
[1725723015224,4.8858618,2317.4,2317.0,0.0016]
[1725723015225,3.2753,2317.4,2317.0,0.0016]
[1725723015569,4.31546,2317.3,2317.0,0.0016]
[1725723015725,3.2753,2317.4,2317.0,0.0016]
[1725723015726,7.59048,2317.4,2317.0,0.0016]
[1725723015919,2.0,2317.2,2317.0,0.0016]
[1725723016121,7.59103,2317.1,2317.0,0.0016]
[1725723016363,6.2753,2317.1,2317.0,0.0016]
[1725723016562,0.759048,2317.3,2317.0,0.0016]
[1725723016921,2.32219565,2317.7,2317.2,4.31554]
[1725723016922,5.59749565,2317.7,2317.2,4.31554]
[1725723017262,5.59749565,2317.7,2317.0,0.0016]
[1725723017263,5.59749565,2317.7,2317.0,4.31739]
[1725723017570,9.91221565,2317.7,2317.0,4.3174]
[1725723017785,6.31517,2317.5,2317.1,0.06489155]
[1725723017981,0.631517,2317.4,2317.1,0.06489155]
[1725723018873,0.55,2317.3,2317.1,0.06489155]
[1725723019443,9.59085,2317.2,2317.1,0.06489155]
[1725723019747,3.2753,2317.2,2317.1,0.06489155]
[1725723020059,6.8253,2317.2,2317.0,0.0016]
[1725723020262,1.664066,2317.1,2317.0,0.0016]
[1725723020755,3.631517,2317.4,2317.0,0.0016]
[1725723020958,0.55,2317.3,2317.0,0.0016]
[1725723021689,3.2753,2317.1,2317.0,0.0016]
[1725723021905,0.55,2317.1,2317.0,0.0016]
[1725723023756,4.86573,2317.1,2317.0,0.0016]
[1725723023994,1.66813,2317.1,2317.0,0.0016]
[1725723024154,0.55,2317.1,2317.0,0.0016]
[1725723024487,4.86573,2317.1,2317.0,0.0016]
[1725723024961,0.55,2317.1,2317.0,0.0016]
[1725723025964,4.86573,2317.1,2317.0,0.0016]
[1725723026576,9.18146,2317.1,2317.0,0.0016]
[1725723026786,12.690732,2317.1,2317.0,0.0016]
[1725723026996,8.375002,2317.1,2317.0,0.0016]
[1725723027156,5.099702,2317.1,2317.0,0.06445548]
[1725723027353,0.55,2317.1,2317.0,0.06445548]
[1725723027770,4.86573,2317.1,2317.0,0.06445548]
[1725723028272,14.0673218,2317.1,2317.0,0.0016]
[1725723028469,7.86573,2317.1,2317.0,0.0016]
[1725723028802,0.55,2317.1,2317.0,0.0016]
[1725723028957,1.564077,2317.1,2317.0,0.0016]
[1725723029398,1.564077,2317.1,2317.0,0.06442672]
[1725723030158,5.879807,2317.1,2317.0,0.06442672]
[1725723030559,1.564077,2317.1,2317.0,0.06442672]
[1725723031166,3.2753,2317.3,2317.0,0.06442672]
[1725723031993,8.63146,2317.1,2317.0,0.06442672]
[1725723032197,6.31558,2317.2,2317.0,0.0016]
[1725723032361,4.86573,2317.1,2317.0,0.0016]
[1725723032556,7.86573,2317.1,2317.0,0.0016]
[1725723032773,9.9778793,2317.1,2317.0,0.0016]
[1725723034309,5.6621493,2317.1,2317.0,0.0016]
[1725723034883,9.9778793,2317.1,2317.0,0.0016]
[1725723035675,13.2447793,2317.1,2317.0,0.0016]
[1725723035880,17.5605093,2317.1,2317.0,0.0016]
[1725723036113,8.9290493,2317.1,2317.0,0.0016]
[1725723036488,13.2447793,2317.1,2317.0,0.0016]
[1725723036691,8.9290493,2317.1,2317.0,0.0016]
[1725723037016,8.3790493,2317.1,2317.0,0.0016]
[1725723037386,12.6947793,2317.1,2317.0,0.0016]
[1725723037905,12.6947793,2317.1,2317.0,0.06447273]
[1725723038112,12.6947793,2317.1,2317.0,0.0016]
[1725723038408,8.9290493,2317.1,2317.0,0.0016]
[1725723038773,5.6621493,2317.1,2317.0,0.0016]
[1725723039043,3.55,2317.1,2317.0,0.06447273]
[1725723039305,3.55,2317.1,2317.0,0.0016]
[1725723039815,7.86573,2317.1,2317.0,0.0016]
[1725723040114,7.86573,2317.1,2317.0,0.06447273]
[1725723040330,7.86573,2317.1,2317.0,0.0016]
[1725723040537,9.6503643,2317.1,2317.0,0.06447273]
[1725723040725,5.3346343,2317.1,2317.0,0.0016]
[1725723041197,5.3346343,2317.1,2317.0,0.06447273]
[1725723041728,2.3346343,2317.1,2317.0,0.06447273]
[1725723041931,2.3346343,2317.1,2317.0,0.0016]
[1725723042089,2.3346343,2317.1,2317.0,0.06447273]
[1725723042296,2.3346343,2317.1,2317.0,0.0016]
[1725723042640,6.6503643,2317.1,2317.0,0.0016]
[1725723042790,2.3346343,2317.1,2317.0,0.06447273]
[1725723043700,9.9172643,2317.1,2317.0,0.06447273]
[1725723044079,8.6015343,2317.1,2317.0,0.0016]
[1725723044330,2.3346343,2317.1,2317.0,0.0016]
[1725723044538,0.55,2317.1,2317.0,0.06447273]
[1725723044850,5.2669,2317.5,2317.0,0.0016]
[1725723045140,2.32219565,2317.7,2317.2,8.63098]
[1725723045336,2.32219565,2317.7,2317.4,4.31514]
[1725723045544,2.32219565,2317.7,2317.3,4.37778754]
[1725723045715,2.32219565,2317.7,2317.5,0.06226413]
[1725723045903,2.32219565,2317.7,2317.4,0.06238583]
[1725723046110,2.32219565,2317.7,2317.6,0.06214244]
[1725723046311,2.32219565,2317.7,2317.3,4.31526]
[1725723046312,2.32219565,2317.7,2317.5,0.06226413]
[1725723046548,6.63681565,2317.7,2317.6,0.06187221]
[1725723046755,2.32219565,2317.7,2317.6,0.06187221]
[1725723047043,2.0,2317.7,2317.6,8.69147221]
[1725723047256,2.0,2317.7,2317.6,7.4584]
[1725723047545,2.0,2317.7,2317.6,7.52027221]
[1725723047954,2.0,2317.7,2317.6,3.20547221]
[1725723048841,2.0,2317.7,2317.6,0.06187221]
[1725723049027,2.55,2317.7,2317.6,0.06187221]
[1725723051323,13.43641565,2317.7,2317.6,0.06187221]
[1725723051518,15.20479565,2317.7,2317.6,0.06187221]
[1725723051735,10.89017565,2317.7,2317.6,0.06187221]
[1725723051917,7.80717565,2317.7,2317.6,0.06187221]
[1725723052546,2.55,2317.7,2317.6,0.06187221]
[1725723053232,2.55,2317.7,2317.6,4.37667221]
[1725723053752,2.55,2317.7,2317.6,0.06187221]
[1725723054544,6.86462,2317.7,2317.6,0.06187221]
[1725723054731,9.86462,2317.7,2317.6,0.06187221]
[1725723054928,11.79300265,2317.7,2317.6,0.06187221]
[1725723055855,7.47838265,2317.7,2317.6,0.06187221]
[1725723056265,4.47838265,2317.7,2317.6,0.06187221]
[1725723056424,13.10762265,2317.7,2317.6,0.06187221]
[1725723056626,6.3148,2317.6,2317.5,0.0016]
[1725723056956,8.68388027,2317.6,2317.5,0.0635939]
[1725723057254,11.68388027,2317.6,2317.5,0.0635939]
[1725723057619,7.36908027,2317.6,2317.5,0.0635939]
[1725723057921,11.68388027,2317.6,2317.5,0.0635939]
[1725723059265,15.99868027,2317.6,2317.5,0.0635939]
[1725723059752,15.99868027,2317.6,2317.5,0.0016]
[1725723060419,7.36908027,2317.6,2317.5,0.0016]
[1725723060621,2.0,2317.7,2317.5,0.0635939]
[1725723062135,5.0,2317.7,2317.5,0.0635939]
[1725723062347,0.55,2317.6,2317.5,0.0635939]
[1725723063323,4.8648,2317.6,2317.5,0.0635939]
[1725723063528,0.55,2317.6,2317.5,0.0635939]
[1725723063773,1.236444,2317.6,2317.5,0.0635939]
[1725723064087,2.0,2317.7,2317.6,8.6296]
[1725723064278,2.0,2317.7,2317.6,11.6775]
[1725723064577,2.0,2317.7,2317.6,16.05426418]
[1725723064927,2.0,2317.7,2317.6,11.73946418]
[1725723065221,2.0,2317.7,2317.6,16.05426418]
[1725723065428,2.0,2317.7,2317.6,11.73946418]
[1725723066266,2.0,2317.7,2317.6,7.42466418]
[1725723066632,2.0,2317.7,2317.6,4.37676418]
[1725723066832,2.0,2317.7,2317.6,0.06196418]
[1725723066833,9.56632,2317.7,2317.6,0.06196418]
[1725723067035,2.0,2317.1,2316.9,4.3144]
[1725723067255,3.2517,2317.0,2316.9,4.3144]
[1725723067466,3.0,2317.0,2316.9,4.3144]
[1725723067629,2.0,2317.1,2316.9,4.36979587]
[1725723068042,5.0,2317.1,2316.9,4.36979587]
[1725723068645,2.0,2317.1,2316.9,4.36979587]
[1725723069354,0.55,2317.0,2316.9,4.36979587]
[1725723069575,8.91658478,2317.0,2316.9,4.36979587]
[1725723069738,17.54842478,2317.0,2316.9,4.36979587]
[1725723070063,17.54842478,2317.0,2316.9,4.3144]
[1725723070064,13.11762,2317.0,2316.9,4.3144]
[1725723070502,13.11762,2317.0,2316.9,4.36924375]
[1725723070718,13.11762,2317.0,2316.9,4.3144]
[1725723070719,15.34979096,2317.0,2316.9,4.3144]
[1725723071184,15.34979096,2317.0,2316.9,4.36924375]
[1725723071386,15.34979096,2317.0,2316.9,4.3144]
[1725723071908,19.66571096,2317.0,2316.9,4.3144]
[1725723072412,24.72884992,2317.0,2316.9,4.3144]
[1725723074145,24.72884992,2317.0,2316.9,3.7644]
[1725723074294,31.30846992,2317.0,2316.9,2.19080383]
[1725723074604,31.87706474,2317.0,2316.9,1.98649064]
[1725723074805,27.56114474,2317.0,2316.9,1.98649064]
[1725723075007,26.99254992,2317.0,2316.9,1.98649064]
[1725723075390,26.99254992,2317.0,2315.4,3.0479]
[1725723075391,2.0,2316.0,2315.4,3.0479]
[1725723075590,7.267322,2316.0,2315.5,0.05654937]
[1725723076007,3.0,2315.9,2315.5,0.05654937]
[1725723076505,2.0,2315.7,2315.5,0.05654937]
[1725723076705,5.0,2315.7,2315.5,0.05654937]
[1725723076910,9.31839,2315.7,2315.0,4.31954]
[1725723077116,1.413656,2315.6,2315.0,4.31954]
[1725723077284,4.413656,2315.6,2315.0,4.31954]
[1725723077605,4.413656,2315.6,2315.1,0.05703707]
[1725723077812,2.0,2315.4,2315.1,0.05703707]
[1725723078007,9.31894,2315.4,2314.6,7.45507]
[1725723078211,6.88834963,2315.0,2314.7,0.05752494]
[1725723078389,6.88834963,2315.0,2313.4,0.89148844]
[1725723078390,2.0,2314.5,2313.8,7.45651]
[1725723078586,2.0,2314.5,2314.0,8.6429]
[1725723078785,2.0,2314.5,2314.1,0.05825705]
[1725723078987,0.55,2314.4,2314.1,0.05825705]
[1725723079173,0.55,2314.4,2313.9,4.32167]
[1725723079174,4.854733,2314.4,2313.8,7.45659]
[1725723079372,4.854733,2314.4,2313.9,0.05850117]
[1725723079820,9.175513,2314.4,2313.9,0.05850117]
[1725723080272,2.0,2314.2,2313.6,8.64431]
[1725723080476,2.0,2314.2,2314.0,0.05837911]
[1725723080477,0.55,2314.1,2314.0,0.05837911]
[1725723080676,3.55,2314.1,2313.6,4.32215]
[1725723080909,3.55,2314.1,2314.0,0.05837911]
[1725723081084,3.55,2314.1,2313.6,4.32215]
[1725723081284,3.55,2314.1,2314.0,0.05837911]
[1725723081491,4.105,2314.1,2313.7,4.32194]
[1725723081699,4.105,2314.1,2314.0,0.05837911]
[1725723082175,4.105,2314.1,2313.8,4.32189]
[1725723082374,3.55,2314.1,2313.9,0.05850117]
[1725723082977,3.55,2314.1,2313.9,0.05624117]
[1725723083173,3.0,2314.1,2313.9,0.05624117]
[1725723083509,2.0,2314.2,2313.9,4.32153]
[1725723084014,2.0,2314.2,2314.0,0.0562791]
[1725723084192,1.05,2314.1,2313.6,4.32221]
[1725723084399,4.05,2314.1,2313.7,0.0583907]
[1725723084579,6.05,2314.1,2313.7,0.0583907]
[1725723085084,2.0,2313.9,2313.7,0.0583907]
[1725723085524,0.55,2313.8,2313.3,4.32265]
[1725723085683,3.55,2313.8,2313.5,4.32244]
[1725723086104,3.55,2313.8,2313.6,0.05851279]
[1725723086417,5.5,2314.1,2313.6,4.32213]
[1725723086618,4.3,2314.0,2313.7,0.0583907]
[1725723087123,4.3,2314.0,2313.7,4.3804207]
[1725723087281,2.0,2313.9,2313.7,0.0583907]
[1725723087480,4.3,2314.0,2313.7,0.0583907]
[1725723087685,3.0,2314.0,2313.9,8.6434]
[1725723087905,2.0,2314.1,2314.0,8.64304]
[1725723088304,2.0,2314.1,2314.0,8.70106446]
[1725723088831,2.0,2314.1,2314.0,4.37954446]
[1725723089905,2.0,2314.1,2314.0,0.05802446]
[1725723090309,2.0,2313.9,2313.5,4.32244]
[1725723090516,0.55,2313.8,2313.3,7.45745]
[1725723090818,3.55,2313.8,2313.6,0.05851279]
[1725723091025,3.0,2313.8,2313.7,4.32208]
[1725723091190,3.0,2314.0,2313.7,4.3804707]
[1725723091722,3.0,2314.0,2313.8,4.3218]
[1725723091891,5.0,2314.1,2313.8,0.05826861]
[1725723092087,5.0,2314.1,2313.6,3.1348]
[1725723092088,5.0,2314.1,2313.9,8.64317]
[1725723092318,5.0,2314.1,2314.0,8.64304]
[1725723092319,2.0,2314.1,2314.0,8.64304]
[1725723092519,2.0,2314.1,2314.0,8.70286733]
[1725723092826,2.0,2314.1,2314.0,20.48070733]
[1725723092827,9.04e-06,2314.1,2314.0,20.48070733]
[1725723093042,1.8006,2315.1,2314.8,4.32001]
[1725723093335,2.0,2315.4,2314.9,4.37852196]
[1725723093553,2.0,2315.4,2315.0,4.31953]
[1725723093836,4.31845,2315.7,2315.0,4.31953]
[1725723093837,2.0,2315.7,2315.2,4.31926]
[1725723094052,2.949498,2315.7,2315.2,8.63843]
[1725723094351,2.949498,2315.7,2315.3,0.05822418]
[1725723094998,7.267848,2315.7,2315.3,0.05822418]
[1725723095194,2.949498,2315.7,2315.3,0.05822418]
[1725723095427,2.949498,2315.7,2315.4,0.05810226]
[1725723095631,13.52578963,2315.5,2315.4,0.05810226]
[1725723095808,6.31948,2315.1,2314.4,4.32064]
[1725723096229,4.31975,2315.0,2314.5,0.05919991]
[1725723096437,7.86988,2314.9,2314.2,7.55614]
[1725723096748,7.86988,2314.9,2314.3,4.32085]
[1725723096749,3.55,2314.9,2314.3,4.32085]
[1725723096945,1.543215,2314.8,2314.3,4.38029395]
[1725723097101,0.55,2314.7,2314.4,4.32073]
[1725723097301,0.55,2314.7,2314.4,4.32066]
[1725723097501,0.55,2314.7,2314.5,0.05919991]
[1725723098143,0.55,2314.7,2314.2,4.32099]
[1725723098347,1.4913165,2314.7,2314.6,0.05861241]
[1725723098625,6.4913165,2314.7,2314.6,0.05861241]
[1725723099023,10.8115365,2314.7,2314.0,4.32139]
[1725723099205,10.8115365,2314.7,2314.1,4.32129]
[1725723099424,10.8115365,2314.7,2314.0,4.32139]
[1725723099425,4.3204,2314.6,2314.0,4.32139]
[1725723099623,9.38378365,2314.5,2314.2,0.05910048]
[1725723099945,9.38378365,2314.5,2313.8,8.64354]
[1725723099946,0.55,2314.4,2314.3,0.05897845]
[1725723100146,3.55,2314.4,2314.3,0.05897845]
[1725723100316,3.55,2314.4,2313.9,4.32166]
[1725723100526,5.55,2314.4,2314.3,0.05897845]
[1725723100722,6.68837836,2314.4,2313.8,8.64352]
[1725723101043,11.00920836,2314.4,2313.6,4.32212]
[1725723101223,11.00920836,2314.4,2313.8,4.3218]
[1725723101425,11.00920836,2314.4,2313.7,0.05971082]
[1725723101626,2.0,2314.1,2313.9,0.05946665]
[1725723101956,2.0,2314.1,2313.3,7.55789]
[1725723101957,4.87165,2314.0,2313.3,11.88062]
[1725723102250,4.32171,2313.9,2313.3,4.32273]
[1725723102422,0.55,2313.8,2313.3,4.32273]
[1725723102624,3.55,2313.8,2313.3,4.3227]
[1725723102811,4.22926,2313.8,2313.3,4.3227]
[1725723103010,3.0,2313.7,2313.3,8.64543]
[1725723103209,0.55,2313.6,2313.3,4.3227]
[1725723103445,0.55,2313.8,2313.2,4.32296]
[1725723103610,0.55,2313.8,2313.7,4.32208]
[1725723103952,3.0,2314.0,2313.7,4.32208]
[1725723103953,0.55,2313.9,2313.7,4.32208]
[1725723104251,0.55,2313.9,2313.7,4.32196]
[1725723104419,1.105,2313.9,2313.5,4.32233]
[1725723104619,1.105,2313.9,2313.5,4.32231]
[1725723104814,1.105,2313.9,2313.6,4.32215]
[1725723105211,1.105,2313.9,2313.5,4.32231]
[1725723105425,1.105,2313.9,2313.3,4.32269]
[1725723105632,0.842652,2313.8,2313.5,4.32242]
[1725723105851,0.55,2313.7,2313.3,4.32265]
[1725723106059,0.55,2313.7,2313.4,4.3226]
[1725723106218,0.55,2313.8,2313.3,4.32265]
[1725723106412,6.87191,2313.8,2313.3,4.32265]
[1725723106656,6.87191,2313.8,2313.3,8.64538]
[1725723106657,3.0,2313.7,2313.3,8.64538]
[1725723106953,0.55,2313.6,2313.3,4.32265]
[1725723107309,0.55,2313.6,2313.5,4.32245]
[1725723107733,0.55,2313.6,2313.5,4.38252577]
[1725723108982,0.55,2313.6,2313.5,8.70497577]
[1725723110186,3.0,2314.0,2313.8,4.32179]
[1725723110359,2.0,2314.1,2313.8,4.32179]
[1725723110868,2.0,2314.1,2313.9,0.06020242]
[1725723111081,2.98191002,2314.1,2313.9,0.06020242]
[1725723111287,3.0,2314.0,2313.9,4.38186242]
[1725723111590,3.0,2314.0,2313.9,4.32166]
[1725723111807,2.0,2314.1,2313.8,8.64357]
[1725723111974,2.0,2314.1,2313.8,4.32178]
[1725723112181,0.5,2314.0,2313.8,4.32178]
[1725723112509,0.55,2313.9,2313.8,4.32178]
[1725723112901,0.55,2313.9,2313.6,4.32215]
[1725723113199,0.55,2313.9,2313.5,3.1856]
[1725723113370,4.87176,2313.9,2313.5,3.1856]
[1725723113571,4.593588,2313.8,2313.5,3.1856]
[1725723113808,1.593588,2313.8,2313.5,3.1856]
[1725723113969,0.55,2313.7,2313.5,3.1856]
[1725723115092,0.55,2313.7,2313.6,4.32226]
[1725723115301,2.0,2314.1,2313.5,7.50792]
[1725723115302,0.55,2313.8,2313.5,7.50792]
[1725723115604,3.0,2314.0,2313.5,7.50792]
[1725723115605,0.55,2313.9,2313.5,7.50792]
[1725723115766,2.0,2313.8,2313.5,3.1856]
[1725723115971,1.237175,2313.7,2313.5,3.1856]
[1725723116176,4.237175,2313.7,2313.5,3.1856]
[1725723117466,5.305,2314.2,2313.5,3.1856]
[1725723117699,2.0,2314.2,2314.0,4.32143]
[1725723117880,2.0,2314.2,2313.9,4.3217]
[1725723118092,2.0,2314.2,2313.8,4.32175]
[1725723118268,7.62563,2314.5,2314.0,4.32151]
[1725723118269,10.19334963,2314.5,2314.0,4.32151]
[1725723118472,10.19334963,2314.5,2313.6,3.1072]
[1725723118473,3.88340996,2314.5,2313.9,4.32169]
[1725723118815,2.0,2314.8,2314.5,4.32047]
[1725723119105,2.0,2314.8,2314.6,4.32027]
[1725723119312,2.0,2314.8,2314.5,4.32047]
[1725723119980,2.0,2314.8,2314.4,4.32076]
[1725723120315,3.305,2314.7,2314.2,4.32108]
[1725723120531,4.699509,2314.7,2314.2,4.32108]
[1725723121009,3.0,2314.6,2314.1,4.32115]
[1725723121212,0.55,2314.5,2314.1,4.32115]
[1725723121614,0.55,2314.5,2314.4,4.32077]
[1725723121815,0.55,2314.5,2314.4,8.64154]
[1725723122115,0.55,2314.6,2314.5,4.32058]
[1725723122325,0.55,2314.7,2314.6,4.32032]
[1725723122494,0.55,2314.7,2314.5,4.37968219]
[1725723122835,0.55,2314.7,2314.5,0.05910219]
[1725723122836,8.6408,2314.6,2314.5,0.05910219]
[1725723123183,2.0,2314.3,2313.9,4.3217]
[1725723123381,0.55,2314.2,2313.9,4.3217]
[1725723123585,3.55,2314.2,2313.9,4.3217]
[1725723124483,3.55,2314.2,2313.9,4.32162]
[1725723124730,3.55,2314.2,2314.0,4.32139]
[1725723124900,3.55,2314.2,2314.1,4.32133]
[1725723124901,3.0,2314.2,2314.1,4.32133]
[1725723125099,3.0,2314.5,2314.3,8.64177]
[1725723125411,3.0,2314.6,2314.3,4.32086]
[1725723125611,3.0,2314.6,2314.1,4.32115]
[1725723125786,3.0,2314.6,2314.1,8.64239]
[1725723125982,3.0,2314.6,2314.2,4.32112]
[1725723126298,1.8006,2314.7,2314.6,4.3204]
[1725723126512,2.0,2315.0,2314.6,4.3204]
[1725723126711,2.0,2315.0,2314.3,4.32081]
[1725723126961,2.0,2315.0,2314.2,0.432112]
[1725723126962,2.0,2314.7,2314.2,4.32114]
[1725723127168,3.305,2314.8,2314.4,4.32068]
[1725723127334,6.31965,2315.0,2314.5,4.32058]
[1725723127540,3.0,2314.9,2314.5,4.32058]
[1725723127873,0.55,2314.8,2314.5,4.32058]
[1725723128457,0.55,2314.8,2314.3,8.64172]
[1725723128661,0.55,2314.8,2314.5,4.32056]
[1725723128858,3.0,2314.9,2314.6,4.32025]
[1725723129070,3.0,2314.9,2314.5,4.32056]
[1725723129294,3.6394425,2314.9,2314.5,4.32049]
[1725723130334,0.55,2314.8,2314.5,4.32049]
[1725723130548,0.55,2314.8,2314.3,8.64169]
[1725723130735,0.55,2314.8,2314.3,4.32083]
[1725723130934,0.55,2314.8,2314.5,4.32048]
[1725723131175,0.55,2314.8,2314.6,4.32027]
[1725723131534,0.55,2314.8,2314.7,4.32021]
[1725723133172,0.55,2314.8,2314.5,4.32042]
[1725723133683,0.55,2314.8,2314.5,8.64086]
[1725723134376,1.105,2314.8,2314.3,4.32087]
[1725723134676,1.105,2314.8,2314.0,4.32134]
[1725723134677,4.32052,2314.6,2314.0,4.32134]
[1725723134841,8.64109,2314.6,2314.0,4.32134]
[1725723135145,2.0,2314.4,2313.7,4.32195]
[1725723135472,0.55,2314.3,2314.0,4.32151]
[1725723135776,0.55,2314.3,2313.9,4.32169]
[1725723135777,3.2848,2314.2,2313.9,4.32169]
[1725723135980,3.55,2314.1,2313.8,4.32187]
[1725723136340,3.55,2314.1,2313.7,4.32196]
[1725723136541,3.55,2314.1,2313.8,4.32187]
[1725723136774,4.665578,2314.1,2313.8,4.32187]
[1725723137387,4.665578,2314.1,2313.9,0.05712986]
[1725723138269,4.665578,2314.1,2313.7,4.32196]
[1725723138464,4.665578,2314.1,2314.0,0.05700779]
[1725723138465,3.55,2314.1,2314.0,0.05700779]
[1725723138676,3.55,2314.1,2314.0,4.32152]
[1725723138891,0.55,2314.1,2314.0,0.05700779]
[1725723139096,0.55,2314.2,2314.0,0.05700779]
[1725723139334,1.537079,2314.2,2314.0,0.05700779]
[1725723140408,1.537079,2314.2,2313.8,4.32187]
[1725723140607,1.537079,2314.2,2314.1,0.05688574]
[1725723140813,1.537079,2314.2,2313.8,4.32187]
[1725723141180,1.537079,2314.2,2313.9,0.05712986]
[1725723142405,0.55,2314.2,2314.0,4.32135]
[1725723142600,3.0,2314.3,2314.2,4.32114]
[1725723142809,5.0,2314.4,2314.1,8.69941574]
[1725723143120,5.0,2314.4,2314.2,4.37788369]
[1725723143414,5.0,2314.4,2314.2,0.05676369]
[1725723143969,5.0,2314.4,2314.2,4.37790369]
[1725723144209,2.0,2314.4,2314.2,0.05676369]
[1725723144418,0.55,2314.3,2314.2,8.69904369]
[1725723144882,2.0,2314.8,2314.5,4.32049]
[1725723145084,2.0,2314.8,2314.3,4.32081]
[1725723145299,6.32003,2314.8,2314.3,4.32081]
[1725723145477,6.32003,2314.8,2314.4,0.05651963]
[1725723145706,7.384009,2314.8,2314.4,4.37727963]
[1725723145903,3.063979,2314.8,2314.4,4.37727963]
[1725723146126,3.55,2314.7,2314.4,4.37727963]
[1725723146332,3.55,2314.7,2314.4,0.05651963]
[1725723146515,3.2848,2314.6,2314.4,0.05651963]
[1725723146722,3.55,2314.5,2314.4,0.05651963]
[1725723147947,3.55,2314.5,2314.2,4.32108]
[1725723147948,4.665512,2314.5,2314.2,4.32113]
[1725723148155,4.665512,2314.5,2314.4,0.05651963]
[1725723148512,4.665512,2314.5,2314.2,4.32113]
[1725723148838,4.665512,2314.5,2314.3,0.05664166]
[1725723149392,4.665512,2314.5,2314.4,0.05651963]
[1725723149509,4.665512,2314.5,2314.1,8.64241]
[1725723149721,4.665512,2314.5,2314.2,0.05676369]
[1725723150024,6.665512,2314.5,2314.2,0.05676369]
[1725723150438,0.97391346,2314.4,2314.2,0.05676369]
[1725723150623,0.55,2314.3,2314.2,0.05676369]
[1725723151026,0.55,2314.3,2313.9,4.32157]
[1725723151224,7.87096,2314.3,2314.2,0.05699322]
[1725723151756,7.87096,2314.3,2313.9,4.32157]
[1725723152052,13.49054735,2314.2,2313.7,4.32202]
[1725723152411,13.49054735,2314.2,2313.8,0.05748147]
[1725723152412,0.55,2314.1,2313.8,0.05748147]
[1725723152609,0.55,2314.1,2313.7,4.32198]
[1725723152806,0.55,2314.1,2313.9,0.05735939]
[1725723153127,4.87144,2314.1,2314.0,0.05723733]
[1725723153332,10.07503822,2314.1,2313.6,4.32225]
[1725723153532,3.0,2314.0,2313.7,0.05760356]
[1725723153773,0.55,2313.9,2313.7,0.05760356]
[1725723154834,0.55,2313.9,2313.7,4.37964356]
[1725723155067,0.55,2313.9,2313.8,4.32189]
[1725723155238,0.55,2313.9,2313.7,4.37967356]
[1725723155575,1.12535982,2313.9,2313.8,0.05748147]
[1725723155781,1.12535982,2313.9,2313.6,4.32225]
[1725723155933,1.12535982,2313.9,2313.8,0.05748147]
[1725723156133,2.0,2313.6,2313.5,3.1856]
[1725723156442,2.55,2313.6,2313.5,3.24344777]
[1725723156655,3.60460049,2313.6,2313.5,3.24344777]
[1725723157176,6.60460049,2313.6,2313.5,3.1856]
[1725723157473,6.60460049,2313.6,2313.5,3.24344777]
[1725723158278,10.92686049,2313.6,2313.5,3.24344777]
[1725723159134,14.06496049,2313.6,2313.5,3.24344777]
[1725723159777,18.38722049,2313.6,2313.5,3.24344777]
[1725723159977,18.38722049,2313.6,2313.5,3.1856]
[1725723160692,18.38722049,2313.6,2313.5,2.55069494]
[1725723161574,22.70948049,2313.6,2313.5,0.53157231]
[1725723161781,18.38722049,2313.6,2313.5,0.53157231]
[1725723161985,4.32341,2313.0,2312.5,4.32421]
[1725723162288,1.378488,2312.9,2312.5,4.32421]
[1725723162584,1.378488,2312.9,2312.3,4.32458]
[1725723162585,2.0,2312.7,2312.3,8.64915]
[1725723162960,0.55,2312.6,2312.3,4.32457]
[1725723163144,3.55,2312.6,2312.3,4.32457]
[1725723163483,3.55,2312.6,2312.3,8.64917]
[1725723163989,4.87932,2312.5,2311.9,7.71783]
[1725723164281,2.0,2312.1,2311.7,4.32568]
[1725723164693,0.55,2312.0,2311.5,4.32602]
[1725723164850,0.55,2312.0,2311.6,4.32591]
[1725723165052,4.96999,2312.0,2311.5,8.65211]
[1725723165280,9.29526,2312.0,2311.5,4.32602]
[1725723165580,4.96999,2312.0,2311.6,4.32599]
[1725723165788,4.96999,2312.0,2311.7,4.32581]
[1725723165993,3.55,2312.0,2311.7,4.32571]
[1725723166558,3.55,2312.0,2311.8,4.32554]
[1725723167246,3.55,2312.0,2311.7,4.32571]
[1725723167459,3.55,2312.0,2311.9,0.06200257]
[1725723167661,3.55,2312.0,2311.8,0.06212486]
[1725723167859,3.55,2312.0,2311.9,0.06200257]
[1725723168153,3.55,2312.0,2311.7,4.32571]
[1725723168352,3.55,2312.0,2311.9,0.06200257]
[1725723168547,3.55,2312.0,2311.7,4.32571]
[1725723168548,3.55,2312.0,2311.7,4.3257]
[1725723168749,3.55,2312.0,2311.8,4.38771486]
[1725723169411,3.55,2312.0,2311.8,0.06212486]
[1725723169564,3.55,2312.0,2311.7,8.65142]
[1725723169760,3.55,2312.0,2311.9,0.06200257]
[1725723169987,4.41881,2312.0,2311.5,4.32604]
[1725723170203,4.41881,2312.0,2311.9,0.06200257]
[1725723170489,4.41881,2312.0,2311.5,8.65214]
[1725723170691,4.41881,2312.0,2311.9,0.06200257]
[1725723170903,4.41881,2312.0,2311.5,4.32604]
[1725723171058,4.41881,2312.0,2311.9,0.06280734]
[1725723171259,4.41881,2312.0,2311.5,8.65213]
[1725723171471,4.41881,2312.0,2311.9,0.06280734]